fUSD/lending_fUSD_20260611
["ID","MTS","AMOUNT","RATE_DAILY","PERIOD"]
[424745762,1781121042000,-860.76641632,0.00012676,2]
[424745754,1781121042000,-860.76641632,0.00012604,2]
[424745746,1781121042000,-860.76641632,0.00012542,2]
[424745755,1781121042000,-860.76641632,0.00012618,2]
[424745758,1781121042000,-529.527274,0.00012649,2]
[424745765,1781121042000,-250.0,0.0001271,2]
[424745771,1781121042000,-860.76641632,0.0001273,2]
[424745774,1781121042000,-76769.27708525,0.00012755,2]
[424745773,1781121042000,-860.76641632,0.00012744,2]
[424745766,1781121042000,-366.721484,0.00012712,2]
[424745757,1781121042000,-860.76641632,0.00012647,2]
[424745760,1781121042000,-860.76641632,0.00012662,2]
[424745761,1781121042000,-500.0,0.00012665,2]
[424745759,1781121042000,-402.908743,0.00012649,2]
[424745763,1781121042000,-860.76641632,0.0001269,2]
[424745772,1781121042000,-302.969635,0.00012744,2]
[424745837,1781121043000,-150.0,0.00013687,2]
[424745834,1781121043000,-150.0,0.00013654,2]
[424745840,1781121043000,-250.0,0.00013697,2]
[424745833,1781121043000,-150.0,0.00013624,2]
[424745831,1781121043000,-150.0,0.00013603,2]
[424745830,1781121043000,-150.0,0.00013595,2]
[424745824,1781121043000,-150.0,0.00013521,2]
[424745829,1781121043000,-150.0,0.00013588,2]
[424745825,1781121043000,-500.0,0.00013533,2]
[424745832,1781121043000,-150.0,0.00013621,2]
[424745836,1781121043000,-736.0,0.00013667,2]
[424745850,1781121043000,-590.47777373,0.00013698,2]
[424745838,1781121043000,-300.0,0.00013697,2]
[424745835,1781121043000,-150.0,0.00013654,2]
[424745841,1781121043000,-300.0,0.00013698,2]
[424745844,1781121043000,-500.0,0.00013698,2]
[424745852,1781121043000,-500.0,0.00013698,2]
[424745843,1781121043000,-500.0,0.00013698,2]
[424745845,1781121043000,-500.0,0.00013698,2]
[424745846,1781121043000,-500.0,0.00013698,2]
[424745842,1781121043000,-666.0,0.00013698,2]
[424745847,1781121043000,-500.0,0.00013698,2]
[424745848,1781121043000,-500.0,0.00013698,2]
[424745827,1781121043000,-150.0,0.00013554,2]
[424745839,1781121043000,-666.0,0.00013697,2]
[424745822,1781121043000,-150.0,0.00013488,2]
[424745809,1781121043000,-2000.0,0.00013336,2]
[424745821,1781121043000,-150.0,0.00013488,2]
[424745851,1781121043000,-276.98837881,0.00013698,2]
[424745799,1781121043000,-3556.0,0.00013222,2]
[424745801,1781121043000,-1274.0,0.00013222,2]
[424745807,1781121043000,-76769.27708525,0.00013266,2]
[424745805,1781121043000,-3661.361,0.00013222,2]
[424745800,1781121043000,-382.0,0.00013222,2]
[424745806,1781121043000,-1000.0,0.00013264,2]
[424745802,1781121043000,-1227.0,0.00013222,2]
[424745803,1781121043000,-933.0,0.00013222,2]
[424745804,1781121043000,-1214.0,0.00013222,2]
[424745808,1781121043000,-4481.62276616,0.00013292,2]
[424745819,1781121043000,-150.0,0.00013488,2]
[424745818,1781121043000,-150.0,0.00013488,2]
[424745810,1781121043000,-500.0,0.00013356,2]
[424745812,1781121043000,-1638.77828422,0.00013362,2]
[424745813,1781121043000,-954.02,0.00013475,2]
[424745814,1781121043000,-150.0,0.00013488,2]
[424745811,1781121043000,-500.0,0.00013356,2]
[424745816,1781121043000,-150.0,0.00013488,2]
[424745815,1781121043000,-257.15629635,0.00013488,2]
[424745823,1781121043000,-150.0,0.00013488,2]
[424745820,1781121043000,-150.0,0.00013488,2]
[424745828,1781121043000,-7295.32840731,0.00013557,2]
[424745826,1781121043000,-173.67,0.00013541,2]
[424745817,1781121043000,-150.0,0.00013488,2]
[424745849,1781121043000,-417.45761275,0.00013698,2]
[424745861,1781121043000,-500.0,0.00013698,2]
[424745854,1781121043000,-500.0,0.00013698,2]
[424745883,1781121043000,-500.0,0.00013698,2]
[424745887,1781121043000,-500.0,0.00013698,2]
[424745885,1781121043000,-500.0,0.00013698,2]
[424745891,1781121043000,-500.0,0.00013698,2]
[424745893,1781121043000,-500.0,0.00013698,2]
[424745896,1781121043000,-500.0,0.00013698,2]
[424745895,1781121043000,-625.79,0.00013698,2]
[424745894,1781121043000,-500.0,0.00013698,2]
[424745897,1781121043000,-500.0,0.00013698,2]
[424745892,1781121043000,-500.0,0.00013698,2]
[424745900,1781121043000,-500.0,0.00013698,2]
[424745886,1781121043000,-500.0,0.00013698,2]
[424745898,1781121043000,-500.0,0.00013698,2]
[424745901,1781121043000,-500.0,0.00013698,2]
[424745905,1781121043000,-508.52146778,0.00013698,2]
[424745906,1781121043000,-500.0,0.00013698,2]
[424745903,1781121043000,-500.0,0.00013698,2]
[424745904,1781121043000,-500.0,0.00013698,2]
[424745909,1781121043000,-500.0,0.00013698,2]
[424745902,1781121043000,-500.0,0.00013698,2]
[424745910,1781121043000,-500.0,0.00013698,2]
[424745907,1781121043000,-500.0,0.00013698,2]
[424745912,1781121043000,-500.0,0.00013698,2]
[424745853,1781121043000,-500.0,0.00013698,2]
[424745899,1781121043000,-500.0,0.00013698,2]
[424745881,1781121043000,-500.0,0.00013698,2]
[424745908,1781121043000,-500.0,0.00013698,2]
[424745889,1781121043000,-500.0,0.00013698,2]
[424745877,1781121043000,-500.0,0.00013698,2]
[424745855,1781121043000,-500.0,0.00013698,2]
[424745856,1781121043000,-500.0,0.00013698,2]
[424745859,1781121043000,-500.0,0.00013698,2]
[424745863,1781121043000,-3402.88,0.00013698,2]
[424745911,1781121043000,-500.0,0.00013698,2]
[424745862,1781121043000,-500.0,0.00013698,2]
[424745858,1781121043000,-500.0,0.00013698,2]
[424745860,1781121043000,-502.14487461,0.00013698,2]
[424745864,1781121043000,-3402.88,0.00013698,2]
[424745865,1781121043000,-3402.88,0.00013698,2]
[424745872,1781121043000,-500.0,0.00013698,2]
[424745857,1781121043000,-500.0,0.00013698,2]
[424745866,1781121043000,-3402.88,0.00013698,2]
[424745867,1781121043000,-3402.88,0.00013698,2]
[424745868,1781121043000,-352.77194654,0.00013698,2]
[424745869,1781121043000,-500.0,0.00013698,2]
[424745876,1781121043000,-500.0,0.00013698,2]
[424745871,1781121043000,-500.0,0.00013698,2]
[424745873,1781121043000,-500.0,0.00013698,2]
[424745874,1781121043000,-500.0,0.00013698,2]
[424745879,1781121043000,-500.0,0.00013698,2]
[424745890,1781121043000,-500.0,0.00013698,2]
[424745888,1781121043000,-500.0,0.00013698,2]
[424745875,1781121043000,-500.0,0.00013698,2]
[424745947,1781121044000,-637.49,0.00013698,2]
[424745946,1781121044000,-637.49,0.00013698,2]
[424745949,1781121044000,-674.88,0.00013699,2]
[424745937,1781121044000,-637.49,0.00013698,2]
[424745944,1781121044000,-637.49,0.00013698,2]
[424745942,1781121044000,-500.0,0.00013698,2]
[424745941,1781121044000,-637.49,0.00013698,2]
[424745934,1781121044000,-637.49,0.00013698,2]
[424745943,1781121044000,-637.49,0.00013698,2]
[424745945,1781121044000,-637.49,0.00013698,2]
[424745952,1781121044000,-500.0,0.00013699,2]
[424745948,1781121044000,-637.49,0.00013698,2]
[424745951,1781121044000,-466.77001847,0.00013699,2]
[424745954,1781121044000,-500.0,0.00013699,2]
[424745956,1781121044000,-500.0,0.00013699,2]
[424745959,1781121044000,-500.0,0.00013699,2]
[424745958,1781121044000,-500.0,0.00013699,2]
[424745953,1781121044000,-500.0,0.00013699,2]
[424745955,1781121044000,-500.0,0.00013699,2]
[424745933,1781121044000,-500.0,0.00013698,2]
[424745957,1781121044000,-500.0,0.00013699,2]
[424745950,1781121044000,-200.0,0.00013699,2]
[424745935,1781121044000,-500.0,0.00013698,2]
[424745929,1781121044000,-500.0,0.00013698,2]
[424745936,1781121044000,-637.49,0.00013698,2]
[424745960,1781121044000,-500.0,0.00013699,2]
[424745915,1781121044000,-500.0,0.00013698,2]
[424745913,1781121044000,-500.0,0.00013698,2]
[424745914,1781121044000,-500.0,0.00013698,2]
[424745916,1781121044000,-500.0,0.00013698,2]
[424745920,1781121044000,-500.0,0.00013698,2]
[424745918,1781121044000,-500.0,0.00013698,2]
[424745919,1781121044000,-500.0,0.00013698,2]
[424745917,1781121044000,-500.0,0.00013698,2]
[424745921,1781121044000,-500.0,0.00013698,2]
[424745939,1781121044000,-637.49,0.00013698,2]
[424745922,1781121044000,-500.0,0.00013698,2]
[424745925,1781121044000,-500.0,0.00013698,2]
[424745926,1781121044000,-316.16211611,0.00013698,2]
[424745923,1781121044000,-500.0,0.00013698,2]
[424745928,1781121044000,-500.0,0.00013698,2]
[424745927,1781121044000,-407.97689245,0.00013698,2]
[424745930,1781121044000,-637.49,0.00013698,2]
[424745931,1781121044000,-500.0,0.00013698,2]
[424745932,1781121044000,-637.49,0.00013698,2]
[424745940,1781121044000,-500.0,0.00013698,2]
[424745938,1781121044000,-500.0,0.00013698,2]
[424745924,1781121044000,-500.0,0.00013698,2]
[424745962,1781121044000,-500.0,0.00013699,2]
[424745964,1781121044000,-500.0,0.00013699,2]
[424745998,1781121044000,-500.0,0.00013699,2]
[424745987,1781121044000,-500.0,0.00013699,2]
[424745990,1781121044000,-500.0,0.00013699,2]
[424745991,1781121044000,-500.0,0.00013699,2]
[424745996,1781121044000,-500.0,0.00013699,2]
[424745995,1781121044000,-500.0,0.00013699,2]
[424745994,1781121044000,-500.0,0.00013699,2]
[424745997,1781121044000,-500.0,0.00013699,2]
[424746002,1781121044000,-500.0,0.00013699,2]
[424746000,1781121044000,-500.0,0.00013699,2]
[424745999,1781121044000,-248.49331415,0.00013699,2]
[424745986,1781121044000,-500.0,0.00013699,2]
[424746001,1781121044000,-500.0,0.00013699,2]
[424746005,1781121044000,-500.0,0.00013699,2]
[424746006,1781121044000,-500.0,0.00013699,2]
[424746007,1781121044000,-500.0,0.00013699,2]
[424746010,1781121044000,-500.0,0.00013699,2]
[424746004,1781121044000,-500.0,0.00013699,2]
[424746012,1781121044000,-500.0,0.00013699,2]
[424746009,1781121044000,-500.0,0.00013699,2]
[424746011,1781121044000,-500.0,0.00013699,2]
[424746008,1781121044000,-500.0,0.00013699,2]
[424745963,1781121044000,-500.0,0.00013699,2]
[424746003,1781121044000,-500.0,0.00013699,2]
[424745988,1781121044000,-500.0,0.00013699,2]
[424745993,1781121044000,-500.0,0.00013699,2]
[424745992,1781121044000,-500.0,0.00013699,2]
[424745961,1781121044000,-500.0,0.00013699,2]
[424745971,1781121044000,-500.0,0.00013699,2]
[424745966,1781121044000,-500.0,0.00013699,2]
[424745967,1781121044000,-500.0,0.00013699,2]
[424745968,1781121044000,-500.0,0.00013699,2]
[424745965,1781121044000,-500.0,0.00013699,2]
[424745970,1781121044000,-500.0,0.00013699,2]
[424745989,1781121044000,-500.0,0.00013699,2]
[424745973,1781121044000,-500.0,0.00013699,2]
[424745983,1781121044000,-500.0,0.00013699,2]
[424745976,1781121044000,-500.0,0.00013699,2]
[424745980,1781121044000,-500.0,0.00013699,2]
[424745969,1781121044000,-500.0,0.00013699,2]
[424745985,1781121044000,-500.0,0.00013699,2]
[424745972,1781121044000,-500.0,0.00013699,2]
[424745981,1781121044000,-500.0,0.00013699,2]
[424745978,1781121044000,-500.0,0.00013699,2]
[424745977,1781121044000,-500.0,0.00013699,2]
[424745979,1781121044000,-500.0,0.00013699,2]
[424745975,1781121044000,-500.0,0.00013699,2]
[424745982,1781121044000,-500.0,0.00013699,2]
[424745984,1781121044000,-500.0,0.00013699,2]
[424745974,1781121044000,-500.0,0.00013699,2]
[424746049,1781121045000,-150.0,0.0001376,2]
[424746052,1781121045000,-1229.61,0.00013782,2]
[424746048,1781121045000,-150.0,0.00013754,2]
[424746046,1781121045000,-150.0,0.00013718,2]
[424746041,1781121045000,-1112.5471825,0.00013699,2]
[424746044,1781121045000,-278.37577561,0.000137,2]
[424746043,1781121045000,-150.0,0.000137,2]
[424746040,1781121045000,-4635.96462775,0.00013699,2]
[424746047,1781121045000,-150.0,0.00013721,2]
[424746045,1781121045000,-150.0,0.00013702,2]
[424746050,1781121045000,-1000.0,0.00013773,2]
[424746064,1781121045000,-150.0,0.00013916,2]
[424746054,1781121045000,-150.0,0.00013787,2]
[424746053,1781121045000,-150.0,0.00013787,2]
[424746056,1781121045000,-150.0,0.00013821,2]
[424746057,1781121045000,-150.0,0.00013821,2]
[424746058,1781121045000,-150.0,0.00013834,2]
[424746055,1781121045000,-150.0,0.00013809,2]
[424746059,1781121045000,-275.354182,0.00013853,2]
[424746060,1781121045000,-209.512546,0.00013853,2]
[424746062,1781121045000,-150.0,0.00013887,2]
[424746061,1781121045000,-150.0,0.00013854,2]
[424746042,1781121045000,-150.0,0.000137,2]
[424746051,1781121045000,-76769.27708525,0.00013778,2]
[424746039,1781121045000,-4635.96462775,0.00013699,2]
[424746020,1781121045000,-4635.96462775,0.00013699,2]
[424746038,1781121045000,-4635.96462775,0.00013699,2]
[424746021,1781121045000,-4635.96462775,0.00013699,2]
[424746019,1781121045000,-4635.96462775,0.00013699,2]
[424746014,1781121045000,-500.0,0.00013699,2]
[424746022,1781121045000,-4635.96462775,0.00013699,2]
[424746013,1781121045000,-500.0,0.00013699,2]
[424746015,1781121045000,-500.0,0.00013699,2]
[424746017,1781121045000,-4635.96462775,0.00013699,2]
[424746016,1781121045000,-500.0,0.00013699,2]
[424746018,1781121045000,-4635.96462775,0.00013699,2]
[424746024,1781121045000,-4635.96462775,0.00013699,2]
[424746025,1781121045000,-4635.96462775,0.00013699,2]
[424746023,1781121045000,-4635.96462775,0.00013699,2]
[424746026,1781121045000,-4635.96462775,0.00013699,2]
[424746027,1781121045000,-4635.96462775,0.00013699,2]
[424746031,1781121045000,-4635.96462775,0.00013699,2]
[424746030,1781121045000,-4635.96462775,0.00013699,2]
[424746028,1781121045000,-4635.96462775,0.00013699,2]
[424746029,1781121045000,-4635.96462775,0.00013699,2]
[424746032,1781121045000,-4635.96462775,0.00013699,2]
[424746034,1781121045000,-4635.96462775,0.00013699,2]
[424746033,1781121045000,-4635.96462775,0.00013699,2]
[424746035,1781121045000,-4635.96462775,0.00013699,2]
[424746037,1781121045000,-4635.96462775,0.00013699,2]
[424746036,1781121045000,-4635.96462775,0.00013699,2]
[424746063,1781121045000,-150.0,0.00013896,2]
[424746112,1781121045000,-150.0,0.00014179,2]
[424746071,1781121045000,-500.0,0.00013966,2]
[424746091,1781121045000,-162.46,0.00014,2]
[424746096,1781121045000,-162.46,0.00014,2]
[424746094,1781121045000,-162.46,0.00014,2]
[424746105,1781121045000,-150.0,0.00014087,2]
[424746098,1781121045000,-235.29103747,0.00014015,2]
[424746099,1781121045000,-150.0,0.00014021,2]
[424746101,1781121045000,-150.0,0.00014033,2]
[424746100,1781121045000,-150.0,0.00014023,2]
[424746106,1781121045000,-150.0,0.0001412,2]
[424746104,1781121045000,-150.0,0.00014087,2]
[424746102,1781121045000,-150.0,0.00014054,2]
[424746103,1781121045000,-150.0,0.00014064,2]
[424746107,1781121045000,-150.0,0.0001413,2]
[424746108,1781121045000,-1000.0,0.00014132,2]
[424746109,1781121045000,-150.0,0.00014154,2]
[424746118,1781121045000,-150.0,0.00014237,2]
[424746110,1781121045000,-150.0,0.00014154,2]
[424746114,1781121045000,-150.0,0.0001422,2]
[424746113,1781121045000,-150.0,0.00014187,2]
[424746116,1781121045000,-150.0,0.00014237,2]
[424746117,1781121045000,-150.0,0.00014237,2]
[424746111,1781121045000,-150.0,0.00014169,2]
[424746065,1781121045000,-150.0,0.00013921,2]
[424746093,1781121045000,-162.46,0.00014,2]
[424746095,1781121045000,-162.46,0.00014,2]
[424746115,1781121045000,-7295.32840731,0.00014228,2]
[424746089,1781121045000,-162.46,0.00014,2]
[424746092,1781121045000,-162.46,0.00014,2]
[424746073,1781121045000,-150.0,0.00013987,2]
[424746067,1781121045000,-225.919533,0.00013922,2]
[424746070,1781121045000,-155.4,0.00013959,2]
[424746068,1781121045000,-150.0,0.00013949,2]
[424746072,1781121045000,-150.0,0.00013987,2]
[424746069,1781121045000,-150.0,0.00013954,2]
[424746074,1781121045000,-59339.75166014,0.00013989,2]
[424746078,1781121045000,-500.0,0.00013989,2]
[424746077,1781121045000,-289.86791566,0.00013989,2]
[424746079,1781121045000,-500.0,0.00013989,2]
[424746085,1781121045000,-625.79,0.00013989,2]
[424746066,1781121045000,-190.695172,0.00013922,2]
[424746080,1781121045000,-500.0,0.00013989,2]
[424746075,1781121045000,-300.0,0.00013989,2]
[424746081,1781121045000,-500.0,0.00013989,2]
[424746083,1781121045000,-500.0,0.00013989,2]
[424746084,1781121045000,-500.0,0.00013989,2]
[424746082,1781121045000,-3402.88,0.00013989,2]
[424746086,1781121045000,-500.0,0.00013989,2]
[424746087,1781121045000,-500.0,0.00013989,2]
[424746097,1781121045000,-250.0,0.00014,2]
[424746088,1781121045000,-26563.13130266,0.0001399,2]
[424746090,1781121045000,-162.46,0.00014,2]
[424746076,1781121045000,-300.0,0.00013989,2]
[424746155,1781121046000,-150.0,0.00014553,2]
[424746156,1781121046000,-1500.0,0.00014554,2]
[424746152,1781121046000,-150.0,0.0001452,2]
[424746163,1781121046000,-150.0,0.00014587,2]
[424746147,1781121046000,-59339.75166014,0.00014444,2]
[424746151,1781121046000,-150.0,0.00014487,2]
[424746146,1781121046000,-150.0,0.00014441,2]
[424746150,1781121046000,-150.0,0.00014487,2]
[424746145,1781121046000,-150.0,0.0001442,2]
[424746153,1781121046000,-150.0,0.00014525,2]
[424746154,1781121046000,-2000.0,0.00014549,2]
[424746160,1781121046000,-3681.0,0.0001458,2]
[424746161,1781121046000,-12940.2,0.0001458,2]
[424746162,1781121046000,-297.95,0.0001458,2]
[424746159,1781121046000,-150.0,0.00014578,2]
[424746164,1781121046000,-300.0,0.00014599,2]
[424746165,1781121046000,-150.0,0.0001462,2]
[424746166,1781121046000,-151.0,0.0001463,2]
[424746173,1781121046000,-3402.88,0.00014682,2]
[424746170,1781121046000,-150.0,0.00014653,2]
[424746168,1781121046000,-150.0,0.0001464,2]
[424746149,1781121046000,-150.0,0.00014453,2]
[424746169,1781121046000,-150.0,0.00014653,2]
[424746158,1781121046000,-150.0,0.00014558,2]
[424746148,1781121046000,-150.0,0.00014451,2]
[424746132,1781121046000,-150.0,0.0001432,2]
[424746142,1781121046000,-3100.795,0.00014406,2]
[424746171,1781121046000,-150.0,0.00014665,2]
[424746119,1781121046000,-300.0,0.00014249,2]
[424746120,1781121046000,-300.0,0.00014249,2]
[424746122,1781121046000,-150.0,0.00014254,2]
[424746123,1781121046000,-150.0,0.00014287,2]
[424746121,1781121046000,-47365.40264775,0.0001425,2]
[424746128,1781121046000,-316.0,0.000143,2]
[424746127,1781121046000,-1000.0,0.000143,2]
[424746125,1781121046000,-150.0,0.00014295,2]
[424746126,1781121046000,-309.0,0.000143,2]
[424746124,1781121046000,-76769.27708525,0.00014289,2]
[424746129,1781121046000,-150.0,0.00014305,2]
[424746130,1781121046000,-350.0,0.00014315,4]
[424746133,1781121046000,-150.0,0.00014344,2]
[424746135,1781121046000,-150.0,0.00014387,2]
[424746138,1781121046000,-768.0,0.00014395,5]
[424746131,1781121046000,-150.0,0.0001432,2]
[424746137,1781121046000,-150.0,0.00014387,2]
[424746139,1781121046000,-761.0,0.00014395,5]
[424746134,1781121046000,-150.0,0.00014354,2]
[424746141,1781121046000,-4642.386799,0.00014398,2]
[424746140,1781121046000,-500.0,0.00014397,2]
[424746143,1781121046000,-172.769,0.00014406,2]
[424746144,1781121046000,-150.0,0.0001441,2]
[424746172,1781121046000,-500.0,0.00014682,2]
[424746182,1781121046000,-625.79,0.00014691,2]
[424746174,1781121046000,-500.0,0.00014682,2]
[424746202,1781121046000,-500.0,0.000148,2]
[424746203,1781121046000,-500.0,0.000148,2]
[424746204,1781121046000,-500.0,0.000148,2]
[424746206,1781121046000,-500.0,0.000148,2]
[424746216,1781121046000,-500.0,0.000148,2]
[424746205,1781121046000,-500.0,0.000148,2]
[424746207,1781121046000,-500.0,0.000148,2]
[424746209,1781121046000,-500.0,0.000148,2]
[424746210,1781121046000,-500.0,0.000148,2]
[424746208,1781121046000,-500.0,0.000148,2]
[424746215,1781121046000,-500.0,0.000148,2]
[424746213,1781121046000,-500.0,0.000148,2]
[424746212,1781121046000,-500.0,0.000148,2]
[424746217,1781121046000,-500.0,0.000148,2]
[424746218,1781121046000,-500.0,0.000148,2]
[424746219,1781121046000,-500.0,0.000148,2]
[424746225,1781121046000,-500.0,0.000148,2]
[424746222,1781121046000,-500.0,0.000148,2]
[424746224,1781121046000,-500.0,0.000148,2]
[424746220,1781121046000,-500.0,0.000148,2]
[424746221,1781121046000,-500.0,0.000148,2]
[424746223,1781121046000,-500.0,0.000148,2]
[424746167,1781121046000,-151.0,0.0001463,2]
[424746201,1781121046000,-500.0,0.000148,2]
[424746197,1781121046000,-150.0,0.00014786,2]
[424746214,1781121046000,-500.0,0.000148,2]
[424746199,1781121046000,-500.0,0.000148,2]
[424746176,1781121046000,-500.0,0.00014682,2]
[424746200,1781121046000,-500.0,0.000148,2]
[424746177,1781121046000,-150.0,0.00014687,2]
[424746179,1781121046000,-500.0,0.00014691,2]
[424746178,1781121046000,-150.0,0.00014687,2]
[424746181,1781121046000,-500.0,0.00014691,2]
[424746180,1781121046000,-500.0,0.00014691,2]
[424746175,1781121046000,-500.0,0.00014682,2]
[424746226,1781121046000,-500.0,0.000148,2]
[424746183,1781121046000,-500.0,0.00014691,2]
[424746185,1781121046000,-500.0,0.00014699,2]
[424746186,1781121046000,-500.0,0.00014699,2]
[424746184,1781121046000,-300.0,0.00014699,2]
[424746189,1781121046000,-3000.0,0.000147,2]
[424746187,1781121046000,-4574.67179092,0.000147,2]
[424746190,1781121046000,-954.02,0.000147,2]
[424746191,1781121046000,-150.0,0.00014714,2]
[424746194,1781121046000,-150.0,0.00014753,2]
[424746193,1781121046000,-8066.58700143,0.00014748,2]
[424746192,1781121046000,-150.0,0.0001472,2]
[424746196,1781121046000,-150.0,0.00014772,2]
[424746188,1781121046000,-9500.0,0.000147,5]
[424746195,1781121046000,-150.0,0.00014756,2]
[424746198,1781121046000,-500.0,0.000148,2]
[424746257,1781121047000,-500.0,0.00014829,2]
[424746274,1781121047000,-500.0,0.00014829,2]
[424746266,1781121047000,-500.0,0.00014829,2]
[424746264,1781121047000,-500.0,0.00014829,2]
[424746259,1781121047000,-500.0,0.00014829,2]
[424746261,1781121047000,-500.0,0.00014829,2]
[424746263,1781121047000,-500.0,0.00014829,2]
[424746262,1781121047000,-500.0,0.00014829,2]
[424746267,1781121047000,-500.0,0.00014829,2]
[424746260,1781121047000,-500.0,0.00014829,2]
[424746272,1781121047000,-500.0,0.00014829,2]
[424746281,1781121047000,-500.0,0.00014829,2]
[424746268,1781121047000,-500.0,0.00014829,2]
[424746269,1781121047000,-500.0,0.00014829,2]
[424746271,1781121047000,-500.0,0.00014829,2]
[424746273,1781121047000,-500.0,0.00014829,2]
[424746270,1781121047000,-500.0,0.00014829,2]
[424746276,1781121047000,-500.0,0.00014829,2]
[424746275,1781121047000,-500.0,0.00014829,2]
[424746280,1781121047000,-500.0,0.00014829,2]
[424746277,1781121047000,-500.0,0.00014829,2]
[424746278,1781121047000,-500.0,0.00014829,2]
[424746279,1781121047000,-500.0,0.00014829,2]
[424746256,1781121047000,-500.0,0.00014829,2]
[424746265,1781121047000,-500.0,0.00014829,2]
[424746258,1781121047000,-500.0,0.00014829,2]
[424746227,1781121047000,-500.0,0.000148,2]
[424746255,1781121047000,-500.0,0.00014829,2]
[424746228,1781121047000,-500.0,0.000148,2]
[424746283,1781121047000,-500.0,0.00014829,2]
[424746230,1781121047000,-500.0,0.000148,2]
[424746240,1781121047000,-500.0,0.000148,2]
[424746242,1781121047000,-500.0,0.000148,2]
[424746241,1781121047000,-500.0,0.000148,2]
[424746229,1781121047000,-500.0,0.000148,2]
[424746232,1781121047000,-500.0,0.000148,2]
[424746231,1781121047000,-500.0,0.000148,2]
[424746233,1781121047000,-500.0,0.000148,2]
[424746234,1781121047000,-500.0,0.000148,2]
[424746254,1781121047000,-500.0,0.00014829,2]
[424746235,1781121047000,-500.0,0.000148,2]
[424746238,1781121047000,-500.0,0.000148,2]
[424746243,1781121047000,-500.0,0.000148,2]
[424746246,1781121047000,-527.0,0.000148,2]
[424746247,1781121047000,-76769.27708525,0.000148,2]
[424746245,1781121047000,-500.0,0.000148,2]
[424746253,1781121047000,-500.0,0.00014829,2]
[424746252,1781121047000,-500.0,0.00014829,2]
[424746250,1781121047000,-150.0,0.0001482,2]
[424746244,1781121047000,-500.0,0.000148,2]
[424746248,1781121047000,-9500.0,0.000148,5]
[424746249,1781121047000,-150.0,0.0001482,2]
[424746236,1781121047000,-500.0,0.000148,2]
[424746284,1781121047000,-500.0,0.00014829,2]
[424746251,1781121047000,-500.0,0.00014829,2]
[424746295,1781121047000,-500.0,0.00014829,2]
[424746318,1781121047000,-500.0,0.00014829,2]
[424746314,1781121047000,-500.0,0.00014829,2]
[424746319,1781121047000,-500.0,0.00014829,2]
[424746313,1781121047000,-500.0,0.00014829,2]
[424746316,1781121047000,-500.0,0.00014829,2]
[424746321,1781121047000,-500.0,0.00014829,2]
[424746320,1781121047000,-500.0,0.00014829,2]
[424746322,1781121047000,-500.0,0.00014829,2]